{"text_format":"3","workbook":"xlsx","n_sheets":1,"sheets":["Godišnji vremenski raspored"],"not_rendered":{"defined_names":2},"read":"whole","date_system":"1900"}

{"sheet":"Godišnji vremenski raspored","index":0,"n_rows":140,"n_cols":12,"rows_kept":140,"merged":[[0,1,1,11],[2,6,2,7],[2,8,2,9],[5,1,5,11],[39,1,39,11],[73,1,73,11],[107,1,107,11]]}
[null,"Vremenska kartica zaposlenog"]
[]
[null,"Ime zaposlenog:",null,"Adresa e-pošte:",null,null,"Ukupne vrednosti za godinu do današnjeg datuma:"]
[null,"Menadžer:",null,"Telefon:",null,null,"Broj časova redovnog rada:",{"$f":"SUM(C16,C27,C38,C50,C61,C72,C84,C95,C106,C118,C129,C140)","v":0},"Broj časova prekovremenog rada:",{"$f":"SUM(F16,F27,F38,F50,F61,F72,F84,F95,F106,F118,F129,F140)","v":0},"Ukupno:",{"$f":"SUM(H4:J4)","v":0}]
[]
[null,"Januar, februar, mart      Vremenska kartica zaposlenog: Dnevno, sedmično, mesečno, godišnje"]
[null,"Januar","1. sedmica","Prekovremeni rad","2. sedmica","Prekovremeni rad ","3. sedmica","Prekovremeni rad  ","4. sedmica","Prekovremeni rad   ","5. sedmica","Prekovremeni rad    "]
[null,"Ponedeljak"]
[null,"Utorak"]
[null,"Sreda"]
[null,"Četvrtak"]
[null,"Petak"]
[null,"Subota"]
[null,"Nedelja"]
[null,"Ukupan broj časova sedmično",{"$f":"SUBTOTAL(109,Januar[1. sedmica])","v":0},{"$f":"SUBTOTAL(109,Januar[Prekovremeni rad])","v":0},{"$f":"SUBTOTAL(109,Januar[2. sedmica])","v":0},{"$f":"SUBTOTAL(109,Januar[[Prekovremeni rad ]])","v":0},{"$f":"SUBTOTAL(109,Januar[3. sedmica])","v":0},{"$f":"SUBTOTAL(109,Januar[[Prekovremeni rad  ]])","v":0},{"$f":"SUBTOTAL(109,Januar[4. sedmica])","v":0},{"$f":"SUBTOTAL(109,Januar[[Prekovremeni rad   ]])","v":0},{"$f":"SUBTOTAL(109,Januar[5. sedmica])","v":0},{"$f":"SUBTOTAL(109,Januar[[Prekovremeni rad    ]])","v":0}]
[null,"Jan. ukupno: Redovno radno vreme",{"$f":"SUM(Januar[[#Totals],[1. sedmica]],Januar[[#Totals],[2. sedmica]],Januar[[#Totals],[3. sedmica]],Januar[[#Totals],[4. sedmica]],Januar[[#Totals],[5. sedmica]])","v":0},"Jan. ukupno: Prekovremeni rad",null,{"$f":"SUM(Januar[[#Totals],[Prekovremeni rad]],Januar[[#Totals],[Prekovremeni rad ]],Januar[[#Totals],[Prekovremeni rad  ]],Januar[[#Totals],[Prekovremeni rad   ]],Januar[[#Totals],[Prekovremeni rad    ]])","v":0}]
[]
[null,"februar","1. sedmica","Prekovremeni rad","2. sedmica","Prekovremeni rad ","3. sedmica","Prekovremeni rad  ","4. sedmica","Prekovremeni rad   ","5. sedmica","Prekovremeni rad    "]
[null,"Ponedeljak"]
[null,"Utorak"]
[null,"Sreda"]
[null,"Četvrtak"]
[null,"Petak"]
[null,"Subota"]
[null,"Nedelja"]
[null,"Ukupan broj časova sedmično",{"$f":"SUBTOTAL(109,Februar[1. sedmica])","v":0},{"$f":"SUBTOTAL(109,Februar[Prekovremeni rad])","v":0},{"$f":"SUBTOTAL(109,Februar[2. sedmica])","v":0},{"$f":"SUBTOTAL(109,Februar[[Prekovremeni rad ]])","v":0},{"$f":"SUBTOTAL(109,Februar[3. sedmica])","v":0},{"$f":"SUBTOTAL(109,Februar[[Prekovremeni rad  ]])","v":0},{"$f":"SUBTOTAL(109,Februar[4. sedmica])","v":0},{"$f":"SUBTOTAL(109,Februar[[Prekovremeni rad   ]])","v":0},{"$f":"SUBTOTAL(109,Februar[5. sedmica])","v":0},{"$f":"SUBTOTAL(109,Februar[[Prekovremeni rad    ]])","v":0}]
[null,"Feb. ukupno: Redovno radno vreme",{"$f":"SUM(Februar[[#Totals],[1. sedmica]],Februar[[#Totals],[2. sedmica]],Februar[[#Totals],[3. sedmica]],Februar[[#Totals],[4. sedmica]],Februar[[#Totals],[5. sedmica]])","v":0},"Feb. ukupno: Prekovremeni rad",null,{"$f":"SUM(Februar[[#Totals],[Prekovremeni rad]],Februar[[#Totals],[Prekovremeni rad ]],Februar[[#Totals],[Prekovremeni rad  ]],Februar[[#Totals],[Prekovremeni rad   ]],Februar[[#Totals],[Prekovremeni rad    ]])","v":0}]
[]
[null,"mart","1. sedmica","Prekovremeni rad","2. sedmica","Prekovremeni rad ","3. sedmica","Prekovremeni rad  ","4. sedmica","Prekovremeni rad   ","5. sedmica","Prekovremeni rad    "]
[null,"Ponedeljak"]
[null,"Utorak"]
[null,"Sreda"]
[null,"Četvrtak"]
[null,"Petak"]
[null,"Subota"]
[null,"Nedelja"]
[null,"Ukupan broj časova sedmično",{"$f":"SUBTOTAL(109,Mart[1. sedmica])","v":0},{"$f":"SUBTOTAL(109,Mart[Prekovremeni rad])","v":0},{"$f":"SUBTOTAL(109,Mart[2. sedmica])","v":0},{"$f":"SUBTOTAL(109,Mart[[Prekovremeni rad ]])","v":0},{"$f":"SUBTOTAL(109,Mart[3. sedmica])","v":0},{"$f":"SUBTOTAL(109,Mart[[Prekovremeni rad  ]])","v":0},{"$f":"SUBTOTAL(109,Mart[4. sedmica])","v":0},{"$f":"SUBTOTAL(109,Mart[[Prekovremeni rad   ]])","v":0},{"$f":"SUBTOTAL(109,Mart[5. sedmica])","v":0},{"$f":"SUBTOTAL(109,Mart[[Prekovremeni rad    ]])","v":0}]
[null,"Mar. ukupno: Redovno radno vreme",{"$f":"SUM(Mart[[#Totals],[1. sedmica]],Mart[[#Totals],[2. sedmica]],Mart[[#Totals],[3. sedmica]],Mart[[#Totals],[4. sedmica]],Mart[[#Totals],[5. sedmica]])","v":0},"Mar. ukupno: Prekovremeni rad",null,{"$f":"SUM(Mart[[#Totals],[Prekovremeni rad]],Mart[[#Totals],[Prekovremeni rad ]],Mart[[#Totals],[Prekovremeni rad  ]],Mart[[#Totals],[Prekovremeni rad   ]],Mart[[#Totals],[Prekovremeni rad    ]])","v":0}]
[]
[null,"April, maj, jun      Vremenska kartica zaposlenog: Dnevno, sedmično, mesečno, godišnje"]
[null,"April","1. sedmica","Prekovremeni rad","2. sedmica","Prekovremeni rad ","3. sedmica","Prekovremeni rad  ","4. sedmica","Prekovremeni rad   ","5. sedmica","Prekovremeni rad    "]
[null,"Ponedeljak"]
[null,"Utorak"]
[null,"Sreda"]
[null,"Četvrtak"]
[null,"Petak"]
[null,"Subota"]
[null,"Nedelja"]
[null,"Ukupan broj časova sedmično",{"$f":"SUBTOTAL(109,April[1. sedmica])","v":0},{"$f":"SUBTOTAL(109,April[Prekovremeni rad])","v":0},{"$f":"SUBTOTAL(109,April[2. sedmica])","v":0},{"$f":"SUBTOTAL(109,April[[Prekovremeni rad ]])","v":0},{"$f":"SUBTOTAL(109,April[3. sedmica])","v":0},{"$f":"SUBTOTAL(109,April[[Prekovremeni rad  ]])","v":0},{"$f":"SUBTOTAL(109,April[4. sedmica])","v":0},{"$f":"SUBTOTAL(109,April[[Prekovremeni rad   ]])","v":0},{"$f":"SUBTOTAL(109,April[5. sedmica])","v":0},{"$f":"SUBTOTAL(109,April[[Prekovremeni rad    ]])","v":0}]
[null,"Apr. ukupno: Redovno radno vreme",{"$f":"SUM(April[[#Totals],[1. sedmica]],April[[#Totals],[2. sedmica]],April[[#Totals],[3. sedmica]],April[[#Totals],[4. sedmica]],April[[#Totals],[5. sedmica]])","v":0},"Apr. ukupno: Prekovremeni rad",null,{"$f":"SUM(April[[#Totals],[Prekovremeni rad]],April[[#Totals],[Prekovremeni rad ]],April[[#Totals],[Prekovremeni rad  ]],April[[#Totals],[Prekovremeni rad   ]],April[[#Totals],[Prekovremeni rad    ]])","v":0}]
[]
[null,"maj","1. sedmica","Prekovremeni rad","2. sedmica","Prekovremeni rad ","3. sedmica","Prekovremeni rad  ","4. sedmica","Prekovremeni rad   ","5. sedmica","Prekovremeni rad    "]
[null,"Ponedeljak"]
[null,"Utorak"]
[null,"Sreda"]
[null,"Četvrtak"]
[null,"Petak"]
[null,"Subota"]
[null,"Nedelja"]
[null,"Ukupan broj časova sedmično",{"$f":"SUBTOTAL(109,Maj[1. sedmica])","v":0},{"$f":"SUBTOTAL(109,Maj[Prekovremeni rad])","v":0},{"$f":"SUBTOTAL(109,Maj[2. sedmica])","v":0},{"$f":"SUBTOTAL(109,Maj[[Prekovremeni rad ]])","v":0},{"$f":"SUBTOTAL(109,Maj[3. sedmica])","v":0},{"$f":"SUBTOTAL(109,Maj[[Prekovremeni rad  ]])","v":0},{"$f":"SUBTOTAL(109,Maj[4. sedmica])","v":0},{"$f":"SUBTOTAL(109,Maj[[Prekovremeni rad   ]])","v":0},{"$f":"SUBTOTAL(109,Maj[5. sedmica])","v":0},{"$f":"SUBTOTAL(109,Maj[[Prekovremeni rad    ]])","v":0}]
[null,"Maj ukupno: Redovno radno vreme",{"$f":"SUM(Maj[[#Totals],[1. sedmica]],Maj[[#Totals],[2. sedmica]],Maj[[#Totals],[3. sedmica]],Maj[[#Totals],[4. sedmica]],Maj[[#Totals],[5. sedmica]])","v":0},"Maj ukupno: Prekovremeni rad",null,{"$f":"SUM(Maj[[#Totals],[Prekovremeni rad]],Maj[[#Totals],[Prekovremeni rad ]],Maj[[#Totals],[Prekovremeni rad  ]],Maj[[#Totals],[Prekovremeni rad   ]],Maj[[#Totals],[Prekovremeni rad    ]])","v":0}]
[]
[null,"jun","1. sedmica","Prekovremeni rad","2. sedmica","Prekovremeni rad ","3. sedmica","Prekovremeni rad  ","4. sedmica","Prekovremeni rad   ","5. sedmica","Prekovremeni rad    "]
[null,"Ponedeljak"]
[null,"Utorak"]
[null,"Sreda"]
[null,"Četvrtak"]
[null,"Petak"]
[null,"Subota"]
[null,"Nedelja"]
[null,"Ukupan broj časova sedmično",{"$f":"SUBTOTAL(109,Jun[1. sedmica])","v":0},{"$f":"SUBTOTAL(109,Jun[Prekovremeni rad])","v":0},{"$f":"SUBTOTAL(109,Jun[2. sedmica])","v":0},{"$f":"SUBTOTAL(109,Jun[[Prekovremeni rad ]])","v":0},{"$f":"SUBTOTAL(109,Jun[3. sedmica])","v":0},{"$f":"SUBTOTAL(109,Jun[[Prekovremeni rad  ]])","v":0},{"$f":"SUBTOTAL(109,Jun[4. sedmica])","v":0},{"$f":"SUBTOTAL(109,Jun[[Prekovremeni rad   ]])","v":0},{"$f":"SUBTOTAL(109,Jun[5. sedmica])","v":0},{"$f":"SUBTOTAL(109,Jun[[Prekovremeni rad    ]])","v":0}]
[null,"Jun ukupno: Redovno radno vreme",{"$f":"SUM(Jun[[#Totals],[1. sedmica]],Jun[[#Totals],[2. sedmica]],Jun[[#Totals],[3. sedmica]],Jun[[#Totals],[4. sedmica]],Jun[[#Totals],[5. sedmica]])","v":0},"Jun ukupno: Prekovremeni rad",null,{"$f":"SUM(Jun[[#Totals],[Prekovremeni rad]],Jun[[#Totals],[Prekovremeni rad ]],Jun[[#Totals],[Prekovremeni rad  ]],Jun[[#Totals],[Prekovremeni rad   ]],Jun[[#Totals],[Prekovremeni rad    ]])","v":0}]
[]
[null,"Jul, avgust, septembar      Vremenska kartica zaposlenog: Dnevno, sedmično, mesečno, godišnje"]
[null,"Jul","1. sedmica","Prekovremeni rad","2. sedmica","Prekovremeni rad ","3. sedmica","Prekovremeni rad  ","4. sedmica","Prekovremeni rad   ","5. sedmica","Prekovremeni rad    "]
[null,"Ponedeljak"]
[null,"Utorak"]
[null,"Sreda"]
[null,"Četvrtak"]
[null,"Petak"]
[null,"Subota"]
[null,"Nedelja"]
[null,"Ukupan broj časova sedmično",{"$f":"SUBTOTAL(109,Jul[1. sedmica])","v":0},{"$f":"SUBTOTAL(109,Jul[Prekovremeni rad])","v":0},{"$f":"SUBTOTAL(109,Jul[2. sedmica])","v":0},{"$f":"SUBTOTAL(109,Jul[[Prekovremeni rad ]])","v":0},{"$f":"SUBTOTAL(109,Jul[3. sedmica])","v":0},{"$f":"SUBTOTAL(109,Jul[[Prekovremeni rad  ]])","v":0},{"$f":"SUBTOTAL(109,Jul[4. sedmica])","v":0},{"$f":"SUBTOTAL(109,Jul[[Prekovremeni rad   ]])","v":0},{"$f":"SUBTOTAL(109,Jul[5. sedmica])","v":0},{"$f":"SUBTOTAL(109,Jul[[Prekovremeni rad    ]])","v":0}]
[null,"Jul ukupno: Redovno radno vreme",{"$f":"SUM(Jul[[#Totals],[1. sedmica]],Jul[[#Totals],[2. sedmica]],Jul[[#Totals],[3. sedmica]],Jul[[#Totals],[4. sedmica]],Jul[[#Totals],[5. sedmica]])","v":0},"Jul ukupno: Prekovremeni rad",null,{"$f":"SUM(Jul[[#Totals],[Prekovremeni rad]],Jul[[#Totals],[Prekovremeni rad ]],Jul[[#Totals],[Prekovremeni rad  ]],Jul[[#Totals],[Prekovremeni rad   ]],Jul[[#Totals],[Prekovremeni rad    ]])","v":0}]
[]
[null,"avgust","1. sedmica","Prekovremeni rad","2. sedmica","Prekovremeni rad ","3. sedmica","Prekovremeni rad  ","4. sedmica","Prekovremeni rad   ","5. sedmica","Prekovremeni rad    "]
[null,"Ponedeljak"]
[null,"Utorak"]
[null,"Sreda"]
[null,"Četvrtak"]
[null,"Petak"]
[null,"Subota"]
[null,"Nedelja"]
[null,"Ukupan broj časova sedmično",{"$f":"SUBTOTAL(109,Avgust[1. sedmica])","v":0},{"$f":"SUBTOTAL(109,Avgust[Prekovremeni rad])","v":0},{"$f":"SUBTOTAL(109,Avgust[2. sedmica])","v":0},{"$f":"SUBTOTAL(109,Avgust[[Prekovremeni rad ]])","v":0},{"$f":"SUBTOTAL(109,Avgust[3. sedmica])","v":0},{"$f":"SUBTOTAL(109,Avgust[[Prekovremeni rad  ]])","v":0},{"$f":"SUBTOTAL(109,Avgust[4. sedmica])","v":0},{"$f":"SUBTOTAL(109,Avgust[[Prekovremeni rad   ]])","v":0},{"$f":"SUBTOTAL(109,Avgust[5. sedmica])","v":0},{"$f":"SUBTOTAL(109,Avgust[[Prekovremeni rad    ]])","v":0}]
[null,"Avg. ukupno: Redovno radno vreme",{"$f":"SUM(Avgust[[#Totals],[1. sedmica]],Avgust[[#Totals],[2. sedmica]],Avgust[[#Totals],[3. sedmica]],Avgust[[#Totals],[4. sedmica]],Avgust[[#Totals],[5. sedmica]])","v":0},"Avg. ukupno: Prekovremeni rad",null,{"$f":"SUM(Avgust[[#Totals],[Prekovremeni rad]],Avgust[[#Totals],[Prekovremeni rad ]],Avgust[[#Totals],[Prekovremeni rad  ]],Avgust[[#Totals],[Prekovremeni rad   ]],Avgust[[#Totals],[Prekovremeni rad    ]])","v":0}]
[]
[null,"septembar","1. sedmica","Prekovremeni rad","2. sedmica","Prekovremeni rad ","3. sedmica","Prekovremeni rad  ","4. sedmica","Prekovremeni rad   ","5. sedmica","Prekovremeni rad    "]
[null,"Ponedeljak"]
[null,"Utorak"]
[null,"Sreda"]
[null,"Četvrtak"]
[null,"Petak"]
[null,"Subota"]
[null,"Nedelja"]
[null,"Ukupan broj časova sedmično",{"$f":"SUBTOTAL(109,Septembar[1. sedmica])","v":0},{"$f":"SUBTOTAL(109,Septembar[Prekovremeni rad])","v":0},{"$f":"SUBTOTAL(109,Septembar[2. sedmica])","v":0},{"$f":"SUBTOTAL(109,Septembar[[Prekovremeni rad ]])","v":0},{"$f":"SUBTOTAL(109,Septembar[3. sedmica])","v":0},{"$f":"SUBTOTAL(109,Septembar[[Prekovremeni rad  ]])","v":0},{"$f":"SUBTOTAL(109,Septembar[4. sedmica])","v":0},{"$f":"SUBTOTAL(109,Septembar[[Prekovremeni rad   ]])","v":0},{"$f":"SUBTOTAL(109,Septembar[5. sedmica])","v":0},{"$f":"SUBTOTAL(109,Septembar[[Prekovremeni rad    ]])","v":0}]
[null,"Sept. ukupno: Redovno radno vreme",{"$f":"SUM(Septembar[[#Totals],[1. sedmica]],Septembar[[#Totals],[2. sedmica]],Septembar[[#Totals],[3. sedmica]],Septembar[[#Totals],[4. sedmica]],Septembar[[#Totals],[5. sedmica]])","v":0},"Sept. ukupno: Prekovremeni rad",null,{"$f":"SUM(Septembar[[#Totals],[Prekovremeni rad]],Septembar[[#Totals],[Prekovremeni rad ]],Septembar[[#Totals],[Prekovremeni rad  ]],Septembar[[#Totals],[Prekovremeni rad   ]],Septembar[[#Totals],[Prekovremeni rad    ]])","v":0}]
[]
[null,"Oktobar, novembar, decembar       Vremenska kartica zaposlenog: Dnevno, sedmično, mesečno, godišnje"]
[null,"Oktobar","1. sedmica","Prekovremeni rad","2. sedmica","Prekovremeni rad ","3. sedmica","Prekovremeni rad  ","4. sedmica","Prekovremeni rad   ","5. sedmica","Prekovremeni rad    "]
[null,"Ponedeljak"]
[null,"Utorak"]
[null,"Sreda"]
[null,"Četvrtak"]
[null,"Petak"]
[null,"Subota"]
[null,"Nedelja"]
[null,"Ukupan broj časova sedmično",{"$f":"SUBTOTAL(109,Oktobar[1. sedmica])","v":0},{"$f":"SUBTOTAL(109,Oktobar[Prekovremeni rad])","v":0},{"$f":"SUBTOTAL(109,Oktobar[2. sedmica])","v":0},{"$f":"SUBTOTAL(109,Oktobar[[Prekovremeni rad ]])","v":0},{"$f":"SUBTOTAL(109,Oktobar[3. sedmica])","v":0},{"$f":"SUBTOTAL(109,Oktobar[[Prekovremeni rad  ]])","v":0},{"$f":"SUBTOTAL(109,Oktobar[4. sedmica])","v":0},{"$f":"SUBTOTAL(109,Oktobar[[Prekovremeni rad   ]])","v":0},{"$f":"SUBTOTAL(109,Oktobar[5. sedmica])","v":0},{"$f":"SUBTOTAL(109,Oktobar[[Prekovremeni rad    ]])","v":0}]
[null,"Okt. ukupno: Redovno radno vreme",{"$f":"SUM(Oktobar[[#Totals],[1. sedmica]],Oktobar[[#Totals],[2. sedmica]],Oktobar[[#Totals],[3. sedmica]],Oktobar[[#Totals],[4. sedmica]],Oktobar[[#Totals],[5. sedmica]])","v":0},"Okt. ukupno: Prekovremeni rad",null,{"$f":"SUM(Oktobar[[#Totals],[Prekovremeni rad]],Oktobar[[#Totals],[Prekovremeni rad ]],Oktobar[[#Totals],[Prekovremeni rad  ]],Oktobar[[#Totals],[Prekovremeni rad   ]],Oktobar[[#Totals],[Prekovremeni rad    ]])","v":0}]
[]
[null,"novembar","1. sedmica","Prekovremeni rad","2. sedmica","Prekovremeni rad ","3. sedmica","Prekovremeni rad  ","4. sedmica","Prekovremeni rad   ","5. sedmica","Prekovremeni rad    "]
[null,"Ponedeljak"]
[null,"Utorak"]
[null,"Sreda"]
[null,"Četvrtak"]
[null,"Petak"]
[null,"Subota"]
[null,"Nedelja"]
[null,"Ukupan broj časova sedmično",{"$f":"SUBTOTAL(109,Novembar[1. sedmica])","v":0},{"$f":"SUBTOTAL(109,Novembar[Prekovremeni rad])","v":0},{"$f":"SUBTOTAL(109,Novembar[2. sedmica])","v":0},{"$f":"SUBTOTAL(109,Novembar[[Prekovremeni rad ]])","v":0},{"$f":"SUBTOTAL(109,Novembar[3. sedmica])","v":0},{"$f":"SUBTOTAL(109,Novembar[[Prekovremeni rad  ]])","v":0},{"$f":"SUBTOTAL(109,Novembar[4. sedmica])","v":0},{"$f":"SUBTOTAL(109,Novembar[[Prekovremeni rad   ]])","v":0},{"$f":"SUBTOTAL(109,Novembar[5. sedmica])","v":0},{"$f":"SUBTOTAL(109,Novembar[[Prekovremeni rad    ]])","v":0}]
[null,"Nov. ukupno: Redovno radno vreme",{"$f":"SUM(Novembar[[#Totals],[1. sedmica]],Novembar[[#Totals],[2. sedmica]],Novembar[[#Totals],[3. sedmica]],Novembar[[#Totals],[4. sedmica]],Novembar[[#Totals],[5. sedmica]])","v":0},"Nov. ukupno: Prekovremeni rad",null,{"$f":"SUM(Novembar[[#Totals],[Prekovremeni rad]],Novembar[[#Totals],[Prekovremeni rad ]],Novembar[[#Totals],[Prekovremeni rad  ]],Novembar[[#Totals],[Prekovremeni rad   ]],Novembar[[#Totals],[Prekovremeni rad    ]])","v":0}]
[]
[null,"decembar","1. sedmica","Prekovremeni rad","2. sedmica","Prekovremeni rad ","3. sedmica","Prekovremeni rad  ","4. sedmica","Prekovremeni rad   ","5. sedmica","Prekovremeni rad    "]
[null,"Ponedeljak"]
[null,"Utorak"]
[null,"Sreda"]
[null,"Četvrtak"]
[null,"Petak"]
[null,"Subota"]
[null,"Nedelja"]
[null,"Ukupan broj časova sedmično",{"$f":"SUBTOTAL(109,Decembar[1. sedmica])","v":0},{"$f":"SUBTOTAL(109,Decembar[Prekovremeni rad])","v":0},{"$f":"SUBTOTAL(105,Decembar[2. sedmica])","v":0},{"$f":"SUBTOTAL(109,Decembar[[Prekovremeni rad ]])","v":0},{"$f":"SUBTOTAL(109,Decembar[3. sedmica])","v":0},{"$f":"SUBTOTAL(109,Decembar[[Prekovremeni rad  ]])","v":0},{"$f":"SUBTOTAL(109,Decembar[4. sedmica])","v":0},{"$f":"SUBTOTAL(109,Decembar[[Prekovremeni rad   ]])","v":0},{"$f":"SUBTOTAL(109,Decembar[5. sedmica])","v":0},{"$f":"SUBTOTAL(109,Decembar[[Prekovremeni rad    ]])","v":0}]
[null,"Dec. ukupno: Redovno radno vreme",{"$f":"SUM(Decembar[[#Totals],[1. sedmica]],Decembar[[#Totals],[2. sedmica]],Decembar[[#Totals],[3. sedmica]],Decembar[[#Totals],[4. sedmica]],Decembar[[#Totals],[5. sedmica]])","v":0},"Dec. ukupno: Prekovremeni rad",null,{"$f":"SUM(Decembar[[#Totals],[Prekovremeni rad]],Decembar[[#Totals],[Prekovremeni rad ]],Decembar[[#Totals],[Prekovremeni rad  ]],Decembar[[#Totals],[Prekovremeni rad   ]],Decembar[[#Totals],[Prekovremeni rad    ]])","v":0}]